[Event "Titled Tuesday Blitz April 18 Early 2023"]
[White "Lehtosaari, Mauri"]
[Black "Tregubov, Pavel V."]
[WhiteFideId "501999"]
[BlackFideId "4115341"]
[WhiteElo "2511"]
[BlackElo "2425"]
[Result "0-1"]
[Round "08"]
[TimeControl "180+2"]
[Date "2023.04.18"]
[WhiteClock "0:00:01"]
[BlackClock "0:00:04"]

1. d4 {[%clk 0:03:00]}  Nf6 {[%clk 0:02:56]} 2. Nf3 {[%clk 0:03:00]}  e6 {[%clk 0:02:55]} 3. Bg5 {[%clk 0:02:54]}  c5 {[%clk 0:02:52]} 4. e3 {[%clk 0:02:55]}  Be7 {[%clk 0:02:51]} 5. Bd3 {[%clk 0:02:55]}  b6 {[%clk 0:02:48]} 6. Nbd2 {[%clk 0:02:55]}  Bb7 {[%clk 0:02:48]} 7. c3 {[%clk 0:02:55]}  O-O {[%clk 0:02:42]} 8. O-O {[%clk 0:02:55]}  h6 {[%clk 0:02:42]} 9. Bh4 {[%clk 0:02:55]}  d6 {[%clk 0:02:39]} 10. a4 {[%clk 0:02:55]}  a6 {[%clk 0:02:29]} 11. h3 {[%clk 0:02:53]}  Nh5 {[%clk 0:02:26]} 12. Bxe7 {[%clk 0:02:51]}  Qxe7 {[%clk 0:02:27]} 13. Qb3 {[%clk 0:02:45]}  Nd7 {[%clk 0:02:25]} 14. Be4 {[%clk 0:02:28]}  d5 {[%clk 0:02:20]} 15. Bb1 {[%clk 0:02:27]}  Rab8 {[%clk 0:02:19]} 16. Qc2 {[%clk 0:02:23]}  Nhf6 {[%clk 0:02:16]} 17. Ne5 {[%clk 0:02:15]}  Rfd8 {[%clk 0:02:10]} 18. Nxd7 {[%clk 0:02:09]}  Rxd7 {[%clk 0:02:07]} 19. Nf3 {[%clk 0:02:09]}  Rc7 {[%clk 0:01:51]} 20. Ne5 {[%clk 0:02:08]}  g6 {[%clk 0:01:47]} 21. Qe2 {[%clk 0:01:40]}  Nd7 {[%clk 0:01:29]} 22. Ng4 {[%clk 0:01:22]}  h5 {[%clk 0:01:24]} 23. Nh2 {[%clk 0:01:22]}  e5 {[%clk 0:01:21]} 24. dxe5 {[%clk 0:01:14]}  Nxe5 {[%clk 0:01:17]} 25. Ba2 {[%clk 0:00:58]}  Re8 {[%clk 0:01:13]} 26. Rae1 {[%clk 0:00:55]}  Rd7 {[%clk 0:01:02]} 27. f4 {[%clk 0:00:39]}  Nc4 {[%clk 0:00:58]} 28. f5 {[%clk 0:00:32]}  Qxe3+ {[%clk 0:00:55]} 29. Qxe3 {[%clk 0:00:31]}  Nxe3 {[%clk 0:00:55]} 30. fxg6 {[%clk 0:00:31]}  fxg6 {[%clk 0:00:52]} 31. Rf6 {[%clk 0:00:29]}  Kg7 {[%clk 0:00:42]} 32. Rxb6 {[%clk 0:00:28]}  d4 {[%clk 0:00:40]} 33. cxd4 {[%clk 0:00:25]}  cxd4 {[%clk 0:00:40]} 34. Bb1 {[%clk 0:00:23]}  Be4 {[%clk 0:00:30]} 35. Bxe4 {[%clk 0:00:20]}  Rxe4 {[%clk 0:00:31]} 36. Nf3 {[%clk 0:00:20]}  d3 {[%clk 0:00:20]} 37. Nd2 {[%clk 0:00:16]}  Ree7 {[%clk 0:00:21]} 38. Rxa6 {[%clk 0:00:14]}  Nc2 {[%clk 0:00:19]} 39. Rxe7+ {[%clk 0:00:14]}  Rxe7 {[%clk 0:00:19]} 40. Rd6 {[%clk 0:00:14]}  Re1+ {[%clk 0:00:12]} 41. Kh2 {[%clk 0:00:13]}  Re2 {[%clk 0:00:12]} 42. Nf3 {[%clk 0:00:09]}  Ne3 {[%clk 0:00:08]} 43. Kg3 {[%clk 0:00:05]}  Rxg2+ {[%clk 0:00:07]} 44. Kf4 {[%clk 0:00:05]}  Nc4 {[%clk 0:00:07]} 45. Rxd3 {[%clk 0:00:04]}  Nxb2 {[%clk 0:00:08]} 46. Rd7+ {[%clk 0:00:04]}  Kh6 {[%clk 0:00:08]} 47. Ne5 {[%clk 0:00:04]}  Nxa4 {[%clk 0:00:06]} 48. Nf7+ {[%clk 0:00:03]}  Kg7 {[%clk 0:00:07]} 49. Ng5+ {[%clk 0:00:04]}  Kf8 {[%clk 0:00:06]} 50. Ne6+ {[%clk 0:00:03]}  Ke8 {[%clk 0:00:06]} 51. Ra7 {[%clk 0:00:02]}  Nc3 {[%clk 0:00:05]} 52. Ke5 {[%clk 0:00:01]}  Re2+ {[%clk 0:00:05]} 53. Kf6 {[%clk 0:00:01]}  Nd5+ {[%clk 0:00:04]} 0-1


[Site "https://www.chess.com"]

[Event "Titled Tuesday Blitz April 18 Early 2023"]
[White "Toncheva, Nadya"]
[Black "Averjanov, Alexey"]
[WhiteFideId "2924056"]
[BlackFideId "14109867"]
[WhiteElo "2101"]
[BlackElo "2624"]
[Result "0-1"]
[Round "08"]
[TimeControl "180+2"]
[Date "2023.04.18"]
[WhiteClock "0:00:09"]
[BlackClock "0:01:00"]

1. e4 {[%clk 0:03:00]}  c6 {[%clk 0:02:50]} 2. d4 {[%clk 0:03:00]}  d5 {[%clk 0:02:51]} 3. Nc3 {[%clk 0:03:01]}  dxe4 {[%clk 0:02:51]} 4. Nxe4 {[%clk 0:03:02]}  Bf5 {[%clk 0:02:50]} 5. Ng3 {[%clk 0:03:02]}  Bg6 {[%clk 0:02:50]} 6. h4 {[%clk 0:03:02]}  h6 {[%clk 0:02:50]} 7. Nf3 {[%clk 0:03:03]}  Nd7 {[%clk 0:02:50]} 8. Bd3 {[%clk 0:03:04]}  Bxd3 {[%clk 0:02:50]} 9. Qxd3 {[%clk 0:03:04]}  e6 {[%clk 0:02:50]} 10. Bf4 {[%clk 0:03:04]}  Ngf6 {[%clk 0:02:49]} 11. O-O-O {[%clk 0:03:04]}  Be7 {[%clk 0:02:49]} 12. Kb1 {[%clk 0:03:03]}  O-O {[%clk 0:02:49]} 13. Ne4 {[%clk 0:03:01]}  Nxe4 {[%clk 0:02:49]} 14. Qxe4 {[%clk 0:03:02]}  Nf6 {[%clk 0:02:50]} 15. Qe2 {[%clk 0:03:02]}  Qd5 {[%clk 0:02:51]} 16. g4 {[%clk 0:02:58]}  Nxg4 {[%clk 0:02:46]} 17. Rhg1 {[%clk 0:02:55]}  h5 {[%clk 0:02:46]} 18. Ne5 {[%clk 0:02:49]}  f5 {[%clk 0:02:28]} 19. f3 {[%clk 0:02:08]}  Nxe5 {[%clk 0:02:10]} 20. dxe5 {[%clk 0:02:06]}  Qc5 {[%clk 0:02:06]} 21. Rg6 {[%clk 0:01:59]}  Rad8 {[%clk 0:02:00]} 22. Rdg1 {[%clk 0:01:48]}  Rf7 {[%clk 0:01:58]} 23. Qg2 {[%clk 0:01:32]}  Bf8 {[%clk 0:01:55]} 24. Rxe6 {[%clk 0:01:22]}  Rfd7 {[%clk 0:01:49]} 25. Bc1 {[%clk 0:01:16]}  Rd1 {[%clk 0:01:45]} 26. Rxd1 {[%clk 0:01:14]}  Rxd1 {[%clk 0:01:46]} 27. Qe2 {[%clk 0:01:09]}  Qg1 {[%clk 0:01:44]} 28. a3 {[%clk 0:00:58]}  Rxc1+ {[%clk 0:01:44]} 29. Ka2 {[%clk 0:00:58]}  Ra1+ {[%clk 0:01:44]} 30. Kb3 {[%clk 0:00:58]}  Qb6+ {[%clk 0:01:44]} 31. Kc3 {[%clk 0:00:56]}  Qa5+ {[%clk 0:01:39]} 32. Kb3 {[%clk 0:00:52]}  Qb6+ {[%clk 0:01:32]} 33. Kc3 {[%clk 0:00:52]}  Rb1 {[%clk 0:01:28]} 34. Qc4 {[%clk 0:00:41]}  Qxb2+ {[%clk 0:01:23]} 35. Kd3 {[%clk 0:00:38]}  Qb5 {[%clk 0:01:09]} 36. Rxc6+ {[%clk 0:00:25]}  Qxc4+ {[%clk 0:01:09]} 37. Rxc4 {[%clk 0:00:26]}  Bxa3 {[%clk 0:01:07]} 38. e6 {[%clk 0:00:24]}  Be7 {[%clk 0:01:04]} 39. Rc8+ {[%clk 0:00:20]}  Kh7 {[%clk 0:01:04]} 40. Rc7 {[%clk 0:00:15]}  Bxh4 {[%clk 0:01:02]} 41. Kd2 {[%clk 0:00:10]}  Rb6 {[%clk 0:01:00]} 42. e7 {[%clk 0:00:09]}  Re6 {[%clk 0:01:00]} 43. Rxb7 {[%clk 0:00:09]}  Rxe7 {[%clk 0:01:00]} 44. Rb5 {[%clk 0:00:10]}  g6 {[%clk 0:01:00]} 45. Rb4 {[%clk 0:00:09]}  Bg5+ {[%clk 0:01:00]} 0-1


[Site "https://www.chess.com"]

[Event "Titled Tuesday Blitz April 18 Early 2023"]
[White "Vaibhav Jayant Raut"]
[Black "Eggink, Ryszard"]
[WhiteFideId "5089034"]
[BlackFideId "1125869"]
[WhiteElo "2156"]
[BlackElo "2283"]
[Result "1-0"]
[Round "08"]
[TimeControl "180+2"]
[Date "2023.04.18"]
[WhiteClock "0:00:06"]
[BlackClock "0:00:10"]

1. Nf3 {[%clk 0:03:00]}  Nf6 {[%clk 0:02:59]} 2. g3 {[%clk 0:02:47]}  e6 {[%clk 0:02:59]} 3. Bg2 {[%clk 0:02:41]}  d5 {[%clk 0:03:00]} 4. O-O {[%clk 0:02:39]}  Be7 {[%clk 0:03:00]} 5. d3 {[%clk 0:02:27]}  O-O {[%clk 0:03:01]} 6. Nbd2 {[%clk 0:02:17]}  c5 {[%clk 0:03:01]} 7. e4 {[%clk 0:02:12]}  b6 {[%clk 0:03:01]} 8. Re1 {[%clk 0:02:09]}  Bb7 {[%clk 0:02:57]} 9. exd5 {[%clk 0:02:09]}  Nxd5 {[%clk 0:02:49]} 10. a4 {[%clk 0:02:07]}  Nc6 {[%clk 0:02:49]} 11. h4 {[%clk 0:02:06]}  Rc8 {[%clk 0:02:34]} 12. Nc4 {[%clk 0:01:58]}  a6 {[%clk 0:02:28]} 13. h5 {[%clk 0:01:44]}  b5 {[%clk 0:02:26]} 14. axb5 {[%clk 0:01:45]}  axb5 {[%clk 0:02:27]} 15. Nce5 {[%clk 0:01:44]}  Nd4 {[%clk 0:02:07]} 16. c3 {[%clk 0:00:59]}  Nxf3+ {[%clk 0:01:58]} 17. Bxf3 {[%clk 0:01:00]}  Qc7 {[%clk 0:01:41]} 18. h6 {[%clk 0:00:54]}  g6 {[%clk 0:01:39]} 19. Ra7 {[%clk 0:00:53]}  Ra8 {[%clk 0:01:23]} 20. Rxb7 {[%clk 0:00:45]}  Qxb7 {[%clk 0:01:22]} 21. c4 {[%clk 0:00:46]}  Rad8 {[%clk 0:01:12]} 22. cxd5 {[%clk 0:00:40]}  exd5 {[%clk 0:01:13]} 23. Ng4 {[%clk 0:00:37]}  f5 {[%clk 0:01:06]} 24. Ne5 {[%clk 0:00:35]}  Bf6 {[%clk 0:01:00]} 25. b4 {[%clk 0:00:27]}  Rfe8 {[%clk 0:00:43]} 26. d4 {[%clk 0:00:18]}  cxd4 {[%clk 0:00:28]} 27. Nd3 {[%clk 0:00:18]}  Re4 {[%clk 0:00:26]} 28. Bf4 {[%clk 0:00:13]}  Qe7 {[%clk 0:00:25]} 29. Rf1 {[%clk 0:00:12]}  g5 {[%clk 0:00:23]} 30. Bd2 {[%clk 0:00:12]}  Rc8 {[%clk 0:00:18]} 31. Qb3 {[%clk 0:00:10]}  Rc4 {[%clk 0:00:18]} 32. Qa2 {[%clk 0:00:11]}  Kf7 {[%clk 0:00:16]} 33. Bh5+ {[%clk 0:00:10]}  Ke6 {[%clk 0:00:16]} 34. Qa6+ {[%clk 0:00:09]}  Qd6 {[%clk 0:00:15]} 35. Qxb5 {[%clk 0:00:08]}  g4 {[%clk 0:00:13]} 36. Bf4 {[%clk 0:00:07]}  Qd7 {[%clk 0:00:12]} 37. Nc5+ {[%clk 0:00:07]}  Rxc5 {[%clk 0:00:12]} 38. Qxc5 {[%clk 0:00:08]}  d3 {[%clk 0:00:11]} 39. Rd1 {[%clk 0:00:07]}  Bd4 {[%clk 0:00:11]} 40. Qf8 {[%clk 0:00:06]}  Re2 {[%clk 0:00:10]} 41. Qg8+ {[%clk 0:00:06]}  Ke7 {[%clk 0:00:10]} 42. Bg5+ {[%clk 0:00:06]}  Kd6 {[%clk 0:00:11]} 43. Qf8+ {[%clk 0:00:06]}  Kc7 {[%clk 0:00:10]} 44. Rc1+ {[%clk 0:00:07]}  Kb7 {[%clk 0:00:10]} 45. Bf7 {[%clk 0:00:04]}  Bxf2+ {[%clk 0:00:10]} 46. Kf1 {[%clk 0:00:03]}  Bb6 {[%clk 0:00:10]} 47. Bxd5+ {[%clk 0:00:04]}  Qxd5 {[%clk 0:00:10]} 48. Qc8+ {[%clk 0:00:05]}  Ka7 {[%clk 0:00:11]} 49. Ra1+ {[%clk 0:00:05]}  Ra2 {[%clk 0:00:11]} 50. Rxa2+ {[%clk 0:00:05]}  Qxa2 {[%clk 0:00:11]} 51. Qd7+ {[%clk 0:00:05]}  Ka6 {[%clk 0:00:12]} 52. Qxd3+ {[%clk 0:00:05]}  Kb7 {[%clk 0:00:11]} 53. Qxf5 {[%clk 0:00:06]}  Qc4+ {[%clk 0:00:09]} 54. Ke1 {[%clk 0:00:03]}  Qxb4+ {[%clk 0:00:09]} 55. Bd2 {[%clk 0:00:04]}  Qd4 {[%clk 0:00:08]} 56. Qxh7+ {[%clk 0:00:03]}  Ka6 {[%clk 0:00:08]} 57. Qf5 {[%clk 0:00:03]}  Qg1+ {[%clk 0:00:08]} 58. Ke2 {[%clk 0:00:04]}  Qg2+ {[%clk 0:00:08]} 59. Kd1 {[%clk 0:00:04]}  Qxg3 {[%clk 0:00:07]} 60. Qc8+ {[%clk 0:00:04]}  Ka7 {[%clk 0:00:06]} 61. Qd7+ {[%clk 0:00:04]}  Ka6 {[%clk 0:00:06]} 62. h7 {[%clk 0:00:04]}  Qf3+ {[%clk 0:00:06]} 63. Kc2 {[%clk 0:00:05]}  Qe4+ {[%clk 0:00:06]} 64. Qd3+ {[%clk 0:00:05]}  Qxd3+ {[%clk 0:00:04]} 65. Kxd3 {[%clk 0:00:06]}  g3 {[%clk 0:00:04]} 66. h8=Q {[%clk 0:00:06]}  Ka7 {[%clk 0:00:04]} 67. Qg7+ {[%clk 0:00:05]}  Ka6 {[%clk 0:00:05]} 68. Qg6 {[%clk 0:00:05]}  Kb7 {[%clk 0:00:05]} 69. Be3 {[%clk 0:00:06]}  Bc7 {[%clk 0:00:06]} 70. Qg7 {[%clk 0:00:05]}  Kc6 {[%clk 0:00:06]} 71. Ke4 {[%clk 0:00:05]}  Bd6 {[%clk 0:00:06]} 72. Kf3 {[%clk 0:00:05]}  Kd5 {[%clk 0:00:07]} 73. Bf4 {[%clk 0:00:06]}  Bc5 {[%clk 0:00:08]} 74. Bxg3 {[%clk 0:00:06]}  Bd4 {[%clk 0:00:09]} 75. Qg5+ {[%clk 0:00:06]}  Kc4 {[%clk 0:00:09]} 76. Qg4 {[%clk 0:00:06]}  Kd3 {[%clk 0:00:10]} 77. Qe4+ {[%clk 0:00:06]}  Kc4 {[%clk 0:00:10]} 78. Be5 {[%clk 0:00:06]} 1-0


[Site "https://www.chess.com"]

[Event "Titled Tuesday Blitz April 18 Early 2023"]
[White "Akylbek2021"]
[Black "Lamaze, Simon"]
[BlackFideId "36069264"]
[WhiteElo "2442"]
[BlackElo "2272"]
[Result "0-1"]
[Round "08"]
[TimeControl "180+2"]
[Date "2023.04.18"]
[WhiteClock "0:00:07"]
[BlackClock "0:02:08"]

1. e4 {[%clk 0:01:37]}  c5 {[%clk 0:02:59]} 2. Nf3 {[%clk 0:01:37]}  e6 {[%clk 0:02:59]} 3. d4 {[%clk 0:01:37]}  cxd4 {[%clk 0:03:00]} 4. Nxd4 {[%clk 0:01:37]}  Nc6 {[%clk 0:03:01]} 5. Nc3 {[%clk 0:01:38]}  Qc7 {[%clk 0:03:01]} 6. g3 {[%clk 0:01:37]}  a6 {[%clk 0:02:59]} 7. Bg2 {[%clk 0:01:38]}  Nf6 {[%clk 0:02:59]} 8. O-O {[%clk 0:01:38]}  Bc5 {[%clk 0:02:59]} 9. Nb3 {[%clk 0:01:37]}  Be7 {[%clk 0:02:58]} 10. Re1 {[%clk 0:01:36]}  d6 {[%clk 0:02:58]} 11. a4 {[%clk 0:01:36]}  Rb8 {[%clk 0:02:56]} 12. a5 {[%clk 0:01:35]}  b5 {[%clk 0:02:51]} 13. axb6 {[%clk 0:01:36]}  Qxb6 {[%clk 0:02:51]} 14. Be3 {[%clk 0:01:35]}  Qc7 {[%clk 0:02:51]} 15. h3 {[%clk 0:01:34]}  O-O {[%clk 0:02:51]} 16. g4 {[%clk 0:01:34]}  Rd8 {[%clk 0:02:51]} 17. f4 {[%clk 0:01:33]}  d5 {[%clk 0:02:47]} 18. e5 {[%clk 0:01:30]}  d4 {[%clk 0:02:32]} 19. exf6 {[%clk 0:01:30]}  Bxf6 {[%clk 0:02:30]} 20. Ne4 {[%clk 0:01:01]}  dxe3 {[%clk 0:02:30]} 21. Nxf6+ {[%clk 0:01:02]}  gxf6 {[%clk 0:02:31]} 22. Qf3 {[%clk 0:01:02]}  Nd4 {[%clk 0:02:26]} 23. Nxd4 {[%clk 0:00:58]}  Rxd4 {[%clk 0:02:27]} 24. Qxe3 {[%clk 0:00:57]}  Qxf4 {[%clk 0:02:26]} 25. Qxf4 {[%clk 0:00:56]}  Rxf4 {[%clk 0:02:27]} 26. Rad1 {[%clk 0:00:56]}  Kg7 {[%clk 0:02:26]} 27. Rd8 {[%clk 0:00:53]}  Rc4 {[%clk 0:02:25]} 28. Re4 {[%clk 0:00:49]}  Rxc2 {[%clk 0:02:24]} 29. Bf1 {[%clk 0:00:28]}  Rbxb2 {[%clk 0:02:16]} 30. Red4 {[%clk 0:00:13]}  a5 {[%clk 0:02:11]} 31. Re8 {[%clk 0:00:12]}  Rc1 {[%clk 0:02:10]} 32. Rd6 {[%clk 0:00:07]}  Bb7 {[%clk 0:02:08]} 0-1


[Site "https://www.chess.com"]

[Event "Titled Tuesday Blitz April 18 Early 2023"]
[White "Kim, Sergey"]
[Black "Vivas Zamora, Fabian Ernesto"]
[WhiteFideId "13700570"]
[BlackFideId "3902480"]
[WhiteElo "2614"]
[BlackElo "2262"]
[Result "1-0"]
[Round "08"]
[TimeControl "180+2"]
[Date "2023.04.18"]
[WhiteClock "0:01:20"]
[BlackClock "0:00:01"]

1. d4 {[%clk 0:03:00]}  Nf6 {[%clk 0:02:59]} 2. c4 {[%clk 0:03:01]}  g6 {[%clk 0:02:59]} 3. Nc3 {[%clk 0:03:00]}  d5 {[%clk 0:03:00]} 4. cxd5 {[%clk 0:03:00]}  Nxd5 {[%clk 0:03:01]} 5. e4 {[%clk 0:03:01]}  Nxc3 {[%clk 0:03:01]} 6. bxc3 {[%clk 0:03:01]}  Bg7 {[%clk 0:03:02]} 7. Bc4 {[%clk 0:03:01]}  c5 {[%clk 0:03:03]} 8. Ne2 {[%clk 0:03:01]}  Nc6 {[%clk 0:03:03]} 9. Be3 {[%clk 0:03:00]}  O-O {[%clk 0:03:03]} 10. O-O {[%clk 0:03:00]}  b6 {[%clk 0:03:03]} 11. Qd2 {[%clk 0:03:00]}  Bb7 {[%clk 0:02:55]} 12. Rad1 {[%clk 0:02:59]}  cxd4 {[%clk 0:02:35]} 13. cxd4 {[%clk 0:02:58]}  e6 {[%clk 0:02:30]} 14. Bh6 {[%clk 0:02:56]}  Rc8 {[%clk 0:02:24]} 15. Bxg7 {[%clk 0:02:53]}  Kxg7 {[%clk 0:02:24]} 16. Bb3 {[%clk 0:02:50]}  Na5 {[%clk 0:02:22]} 17. Ng3 {[%clk 0:02:48]}  Qh4 {[%clk 0:01:53]} 18. f4 {[%clk 0:02:40]}  Rfd8 {[%clk 0:01:47]} 19. f5 {[%clk 0:02:33]}  exf5 {[%clk 0:01:39]} 20. exf5 {[%clk 0:02:33]}  Nxb3 {[%clk 0:01:34]} 21. axb3 {[%clk 0:02:32]}  Rd6 {[%clk 0:01:31]} 22. Rf4 {[%clk 0:02:27]}  Qd8 {[%clk 0:00:59]} 23. fxg6 {[%clk 0:02:18]}  hxg6 {[%clk 0:00:56]} 24. Rdf1 {[%clk 0:02:15]}  Rc7 {[%clk 0:00:51]} 25. Rg4 {[%clk 0:02:07]}  Rd5 {[%clk 0:00:38]} 26. Nf5+ {[%clk 0:01:56]}  Rxf5 {[%clk 0:00:32]} 27. Rxf5 {[%clk 0:01:55]}  Bc8 {[%clk 0:00:32]} 28. Rff4 {[%clk 0:01:47]}  Bxg4 {[%clk 0:00:32]} 29. Rxg4 {[%clk 0:01:48]}  Qc8 {[%clk 0:00:30]} 30. h3 {[%clk 0:01:46]}  Rc1+ {[%clk 0:00:29]} 31. Kh2 {[%clk 0:01:45]}  Qc7+ {[%clk 0:00:30]} 32. Rg3 {[%clk 0:01:36]}  b5 {[%clk 0:00:13]} 33. d5 {[%clk 0:01:36]}  Rc2 {[%clk 0:00:06]} 34. Qd4+ {[%clk 0:01:36]}  Kg8 {[%clk 0:00:03]} 35. d6 {[%clk 0:01:36]}  Qc5 {[%clk 0:00:01]} 36. Qf6 {[%clk 0:01:22]}  Qg1+ {[%clk 0:00:01]} 37. Kxg1 {[%clk 0:01:20]} 1-0


[Site "https://www.chess.com"]

[Event "Titled Tuesday Blitz April 18 Early 2023"]
[White "Delorme, Axel"]
[Black "Arias, Juan Cruz"]
[WhiteFideId "632023"]
[BlackFideId "118540"]
[WhiteElo "2478"]
[BlackElo "2243"]
[Result "1-0"]
[Round "08"]
[TimeControl "180+2"]
[Date "2023.04.18"]
[WhiteClock "0:01:10"]
[BlackClock "0:01:15"]

1. e4 {[%clk 0:03:00]}  c6 {[%clk 0:02:58]} 2. d4 {[%clk 0:03:00]}  d5 {[%clk 0:02:59]} 3. Nc3 {[%clk 0:03:00]}  dxe4 {[%clk 0:02:58]} 4. Nxe4 {[%clk 0:03:00]}  Bf5 {[%clk 0:02:54]} 5. Ng3 {[%clk 0:02:59]}  Bg6 {[%clk 0:02:54]} 6. h4 {[%clk 0:03:00]}  h6 {[%clk 0:02:54]} 7. Nf3 {[%clk 0:03:00]}  Nd7 {[%clk 0:02:55]} 8. h5 {[%clk 0:03:01]}  Bh7 {[%clk 0:02:55]} 9. Bd3 {[%clk 0:03:01]}  Bxd3 {[%clk 0:02:56]} 10. Qxd3 {[%clk 0:03:02]}  e6 {[%clk 0:02:56]} 11. Bd2 {[%clk 0:03:03]}  Ngf6 {[%clk 0:02:55]} 12. O-O-O {[%clk 0:03:03]}  Be7 {[%clk 0:02:56]} 13. Kb1 {[%clk 0:03:03]}  O-O {[%clk 0:02:56]} 14. Ne4 {[%clk 0:03:02]}  Nxe4 {[%clk 0:02:56]} 15. Qxe4 {[%clk 0:03:02]}  Nf6 {[%clk 0:02:56]} 16. Qe2 {[%clk 0:03:03]}  Qd5 {[%clk 0:02:37]} 17. Be3 {[%clk 0:03:03]}  Ng4 {[%clk 0:02:27]} 18. Bc1 {[%clk 0:02:57]}  Rad8 {[%clk 0:02:14]} 19. Ne5 {[%clk 0:02:46]}  Nxe5 {[%clk 0:02:13]} 20. dxe5 {[%clk 0:02:47]}  Qb5 {[%clk 0:02:06]} 21. Qxb5 {[%clk 0:02:15]}  cxb5 {[%clk 0:02:07]} 22. c3 {[%clk 0:02:14]}  Rxd1 {[%clk 0:01:59]} 23. Rxd1 {[%clk 0:02:14]}  Rd8 {[%clk 0:01:59]} 24. Rxd8+ {[%clk 0:02:14]}  Bxd8 {[%clk 0:02:00]} 25. Be3 {[%clk 0:02:12]}  a6 {[%clk 0:01:59]} 26. Kc2 {[%clk 0:02:11]}  Bc7 {[%clk 0:01:58]} 27. f4 {[%clk 0:02:06]}  Kf8 {[%clk 0:01:54]} 28. Kd3 {[%clk 0:02:05]}  Ke7 {[%clk 0:01:49]} 29. Bc5+ {[%clk 0:02:03]}  Ke8 {[%clk 0:01:48]} 30. Ke4 {[%clk 0:02:02]}  f5+ {[%clk 0:01:41]} 31. exf6 {[%clk 0:01:54]}  gxf6 {[%clk 0:01:41]} 32. f5 {[%clk 0:01:53]}  exf5+ {[%clk 0:01:29]} 33. Kxf5 {[%clk 0:01:53]}  Kf7 {[%clk 0:01:30]} 34. Be3 {[%clk 0:01:42]}  Be5 {[%clk 0:01:28]} 35. Bxh6 {[%clk 0:01:36]}  b4 {[%clk 0:01:28]} 36. Bd2 {[%clk 0:01:32]}  a5 {[%clk 0:01:22]} 37. g4 {[%clk 0:01:30]}  Bd6 {[%clk 0:01:15]} 38. cxb4 {[%clk 0:01:28]}  axb4 {[%clk 0:01:15]} 39. b3 {[%clk 0:01:25]}  b5 {[%clk 0:01:15]} 40. Be3 {[%clk 0:01:10]} 1-0


[Site "https://www.chess.com"]

[Event "Titled Tuesday Blitz April 18 Early 2023"]
[White "wqws"]
[Black "Seder, Mohammed"]
[BlackFideId "11505567"]
[WhiteElo "2591"]
[BlackElo "1862"]
[Result "1-0"]
[Round "08"]
[TimeControl "180+2"]
[Date "2023.04.18"]
[WhiteClock "0:02:23"]
[BlackClock "0:01:18"]

1. e4 {[%clk 0:03:00]}  c5 {[%clk 0:02:59]} 2. Nf3 {[%clk 0:02:57]}  Nc6 {[%clk 0:02:59]} 3. d4 {[%clk 0:02:58]}  cxd4 {[%clk 0:03:00]} 4. Nxd4 {[%clk 0:02:59]}  Nf6 {[%clk 0:03:00]} 5. Nc3 {[%clk 0:02:59]}  e5 {[%clk 0:03:01]} 6. Ndb5 {[%clk 0:03:00]}  d6 {[%clk 0:03:01]} 7. Nd5 {[%clk 0:02:59]}  Nxd5 {[%clk 0:03:01]} 8. exd5 {[%clk 0:03:00]}  Ne7 {[%clk 0:03:01]} 9. c4 {[%clk 0:02:59]}  f5 {[%clk 0:03:01]} 10. c5 {[%clk 0:02:54]}  Ng6 {[%clk 0:02:42]} 11. h4 {[%clk 0:02:53]}  e4 {[%clk 0:02:23]} 12. h5 {[%clk 0:02:43]}  Ne5 {[%clk 0:02:22]} 13. Qd4 {[%clk 0:02:42]}  a6 {[%clk 0:02:11]} 14. cxd6 {[%clk 0:02:36]}  Bxd6 {[%clk 0:02:12]} 15. Nxd6+ {[%clk 0:02:35]}  Qxd6 {[%clk 0:02:12]} 16. h6 {[%clk 0:02:36]}  g6 {[%clk 0:02:02]} 17. Bf4 {[%clk 0:02:34]}  Nd3+ {[%clk 0:01:33]} 18. Bxd3 {[%clk 0:02:33]}  Qxf4 {[%clk 0:01:31]} 19. Qxh8+ {[%clk 0:02:33]}  Kd7 {[%clk 0:01:32]} 20. Qxh7+ {[%clk 0:02:32]}  Kd6 {[%clk 0:01:32]} 21. Be2 {[%clk 0:02:31]}  Bd7 {[%clk 0:01:30]} 22. Qg7 {[%clk 0:02:29]}  Rc8 {[%clk 0:01:30]} 23. O-O {[%clk 0:02:25]}  e3 {[%clk 0:01:21]} 24. Qf6+ {[%clk 0:02:23]}  Kc7 {[%clk 0:01:18]} 25. Rac1+ {[%clk 0:02:23]} 1-0


[Site "https://www.chess.com"]

[Event "Titled Tuesday Blitz April 18 Early 2023"]
[White "Ibadov, Dashgyn"]
[Black "Delorme, Alban"]
[WhiteFideId "24107514"]
[BlackFideId "623636"]
[WhiteElo "2208"]
[BlackElo "2196"]
[Result "0-1"]
[Round "08"]
[TimeControl "180+2"]
[Date "2023.04.18"]
[WhiteClock "0:00:01"]
[BlackClock "0:00:02"]

1. e4 {[%clk 0:03:00]}  c5 {[%clk 0:03:00]} 2. Nf3 {[%clk 0:03:00]}  d6 {[%clk 0:03:00]} 3. d4 {[%clk 0:03:00]}  cxd4 {[%clk 0:03:00]} 4. Nxd4 {[%clk 0:03:01]}  Nf6 {[%clk 0:03:01]} 5. Nc3 {[%clk 0:03:01]}  a6 {[%clk 0:03:02]} 6. h3 {[%clk 0:03:01]}  e5 {[%clk 0:03:02]} 7. Nde2 {[%clk 0:02:58]}  h5 {[%clk 0:03:01]} 8. Bg5 {[%clk 0:02:59]}  Be6 {[%clk 0:02:57]} 9. Bxf6 {[%clk 0:02:59]}  Qxf6 {[%clk 0:02:57]} 10. Nd5 {[%clk 0:03:00]}  Qd8 {[%clk 0:02:53]} 11. Nec3 {[%clk 0:03:00]}  Nc6 {[%clk 0:02:42]} 12. Bc4 {[%clk 0:03:01]}  g6 {[%clk 0:02:40]} 13. O-O {[%clk 0:03:00]}  Bg7 {[%clk 0:02:40]} 14. Bb3 {[%clk 0:03:00]}  O-O {[%clk 0:02:39]} 15. Qd3 {[%clk 0:02:59]}  Kh8 {[%clk 0:02:30]} 16. Rad1 {[%clk 0:02:58]}  Nd4 {[%clk 0:02:21]} 17. f4 {[%clk 0:02:57]}  f5 {[%clk 0:02:10]} 18. Ne3 {[%clk 0:02:31]}  Bxb3 {[%clk 0:01:55]} 19. axb3 {[%clk 0:02:30]}  exf4 {[%clk 0:01:39]} 20. Rxf4 {[%clk 0:02:29]}  Be5 {[%clk 0:01:39]} 21. exf5 {[%clk 0:02:06]}  Bxf4 {[%clk 0:01:31]} 22. Qxd4+ {[%clk 0:02:06]}  Be5 {[%clk 0:01:31]} 23. Qe4 {[%clk 0:02:06]}  gxf5 {[%clk 0:01:27]} 24. Nxf5 {[%clk 0:02:06]}  Qg5 {[%clk 0:01:23]} 25. Rf1 {[%clk 0:01:16]}  Rf7 {[%clk 0:01:07]} 26. Nd5 {[%clk 0:01:10]}  Raf8 {[%clk 0:01:01]} 27. Nde3 {[%clk 0:01:09]}  Rg8 {[%clk 0:00:27]} 28. c3 {[%clk 0:00:56]}  Rf6 {[%clk 0:00:17]} 29. b4 {[%clk 0:00:29]}  Re8 {[%clk 0:00:17]} 30. Kh1 {[%clk 0:00:17]}  Qg6 {[%clk 0:00:17]} 31. Qxb7 {[%clk 0:00:14]}  Bf4 {[%clk 0:00:10]} 32. Nd5 {[%clk 0:00:13]}  Rxf5 {[%clk 0:00:08]} 33. Nxf4 {[%clk 0:00:10]}  Qf6 {[%clk 0:00:03]} 34. Qf3 {[%clk 0:00:03]}  Rf8 {[%clk 0:00:03]} 35. g3 {[%clk 0:00:03]}  h4 {[%clk 0:00:02]} 36. Qg4 {[%clk 0:00:01]}  hxg3 {[%clk 0:00:02]} 37. Ng6+ {[%clk 0:00:01]}  Qxg6 {[%clk 0:00:01]} 38. Qxg6 {[%clk 0:00:01]}  Rxf1+ {[%clk 0:00:01]} 39. Kg2 {[%clk 0:00:01]}  R8f2+ {[%clk 0:00:01]} 40. Kxg3 {[%clk 0:00:01]}  Rg1+ {[%clk 0:00:02]} 0-1


[Site "https://www.chess.com"]